fUST/lending_fUST_20240826
["ID","MTS","AMOUNT","RATE_DAILY","PERIOD"]
[336061621,1724685044451,-253.74627623,0.00011689,2]
[336061622,1724685044461,-154.72922694,0.00011712,2]
[336061623,1724685044472,-500.0,0.00011773,2]
[336061624,1724685044482,-500.0,0.00011773,2]
[336061625,1724685044492,-500.0,0.00011773,2]
[336061626,1724685044502,-2016.72,0.00011783,2]
[336061627,1724685044514,-1233.9,0.00011783,2]
[336061628,1724685044527,-500.0,0.00011783,2]
[336061629,1724685044537,-500.0,0.00011783,2]
[336061630,1724685044547,-500.0,0.00011783,2]
[336061631,1724685044559,-583.12,0.00011783,2]
[336061632,1724685044571,-500.0,0.00011783,2]
[336061633,1724685044582,-500.0,0.00011783,2]
[336061634,1724685044592,-500.0,0.00011783,2]
[336061635,1724685044604,-500.0,0.00011783,2]
[336061636,1724685044614,-553.52,0.00011783,2]
[336061637,1724685044624,-500.0,0.00011783,2]
[336061638,1724685044634,-500.0,0.00011783,2]
[336061639,1724685044644,-1711.9,0.00011783,2]
[336061640,1724685044653,-500.0,0.00011783,2]
[336061641,1724685044663,-500.84,0.00011783,2]
[336061642,1724685044673,-500.0,0.00011783,2]
[336061643,1724685044683,-528.45,0.00011783,2]
[336061644,1724685044693,-1847.15,0.00011783,2]
[336061645,1724685044703,-500.0,0.00011783,2]
[336061646,1724685044713,-534.16,0.00011783,2]
[336061647,1724685044722,-500.0,0.00011783,2]
[336061648,1724685044732,-500.0,0.00011783,2]
[336061649,1724685044742,-500.0,0.00011783,2]
[336061650,1724685044751,-500.0,0.00011783,2]
[336061651,1724685044761,-503.69,0.00011783,2]
[336061652,1724685044772,-500.0,0.00011783,2]
[336061653,1724685044782,-500.0,0.00011783,2]
[336061654,1724685044792,-500.0,0.00011783,2]
[336061655,1724685044803,-500.0,0.00011784,2]
[336061656,1724685044813,-513.36,0.00011784,2]
[336061657,1724685044824,-500.0,0.00011784,2]
[336061658,1724685044834,-500.0,0.00011784,2]
[336061659,1724685044844,-500.0,0.00011784,2]
[336061660,1724685044853,-500.0,0.00011784,2]
[336061661,1724685044863,-500.0,0.00011784,2]
[336061662,1724685044872,-500.0,0.00011784,2]
[336061663,1724685044882,-538.72,0.00011784,2]
[336061664,1724685044892,-500.0,0.00011784,2]
[336061665,1724685044902,-500.0,0.00011784,2]
[336061666,1724685044912,-365.07364795,0.00011784,2]
[336061667,1724685044922,-859.08,0.00011784,2]
[336061668,1724685044933,-500.0,0.00011784,2]
[336061669,1724685044942,-500.0,0.00011784,2]
[336061670,1724685044952,-366.65,0.00011784,2]
[336061671,1724685044962,-500.0,0.00011784,2]
[336061672,1724685044971,-500.0,0.00011784,2]
[336061673,1724685044981,-500.0,0.00011784,2]
[336061674,1724685044990,-500.0,0.00011784,2]
[336061675,1724685044999,-500.0,0.00011784,2]
[336061676,1724685045009,-537.85,0.00011784,2]
[336061677,1724685045018,-500.0,0.00011784,2]
[336061678,1724685045028,-500.0,0.00011784,2]
[336061679,1724685045038,-500.0,0.00011784,2]
[336061680,1724685045047,-500.0,0.00011784,2]
[336061681,1724685045056,-500.0,0.00011784,2]
[336061682,1724685045065,-500.0,0.00011784,2]
[336061683,1724685045076,-500.0,0.00011784,2]
[336061684,1724685045086,-500.0,0.00011784,2]
[336061685,1724685045095,-500.0,0.00011784,2]
[336061686,1724685045106,-500.0,0.00011784,2]
[336061687,1724685045116,-500.0,0.00011784,2]
[336061688,1724685045126,-500.0,0.00011784,2]
[336061689,1724685045136,-788.41,0.00011784,2]
[336061690,1724685045146,-874.03,0.00011784,2]
[336061691,1724685045157,-500.0,0.00011784,2]
[336061692,1724685045167,-500.0,0.00011784,2]
[336061693,1724685045177,-506.34,0.00011784,2]
[336061694,1724685045187,-500.0,0.00011784,2]
[336061695,1724685045197,-500.0,0.00011784,2]
[336061696,1724685045207,-500.0,0.00011784,2]
[336061697,1724685045217,-504.34,0.00011784,2]
[336061698,1724685045227,-500.0,0.00011784,2]
[336061699,1724685045238,-500.0,0.00011784,2]
[336061700,1724685045248,-507.0,0.00011784,2]
[336061701,1724685045258,-500.0,0.00011784,2]
[336061702,1724685045268,-500.0,0.00011784,2]
[336061703,1724685045279,-500.0,0.00011784,2]
[336061704,1724685045288,-500.0,0.00011784,2]
[336061705,1724685045297,-500.0,0.00011784,2]
[336061706,1724685045307,-500.0,0.00011784,2]
[336061707,1724685045317,-751.37,0.00011784,2]
[336061708,1724685045328,-500.0,0.00011784,2]
[336061709,1724685045338,-500.0,0.00011784,2]
[336061710,1724685045348,-515.17,0.00011784,2]
[336061711,1724685045358,-500.0,0.00011784,2]
[336061712,1724685045368,-500.0,0.00011784,2]
[336061713,1724685045377,-500.0,0.00011784,2]
[336061714,1724685045387,-500.0,0.00011784,2]
[336061715,1724685045397,-550.11,0.00011784,2]
[336061716,1724685045407,-500.0,0.00011784,2]
[336061717,1724685045416,-500.0,0.00011784,2]
[336061718,1724685045426,-500.0,0.00011784,2]
[336061719,1724685045436,-500.0,0.00011784,2]
[336061720,1724685045446,-500.0,0.00011784,2]
[336061721,1724685045457,-745.64,0.00011784,2]
[336061722,1724685045467,-500.0,0.00011784,2]
[336061723,1724685045477,-500.0,0.00011784,2]
[336061724,1724685045487,-500.0,0.00011784,2]
[336061725,1724685045498,-500.0,0.00011784,2]
[336061726,1724685045509,-500.0,0.00011784,2]
[336061727,1724685045519,-500.0,0.00011784,2]
[336061728,1724685045533,-1263.82,0.00011784,2]
[336061729,1724685045543,-500.0,0.00011784,2]
[336061730,1724685045554,-500.0,0.00011784,2]
[336061731,1724685045565,-500.0,0.00011784,2]
[336061732,1724685045577,-500.0,0.00011784,2]
[336061733,1724685045587,-942.87,0.00011784,2]
[336061734,1724685045598,-500.0,0.00011784,2]
[336061735,1724685045608,-500.0,0.00011784,2]
[336061736,1724685045619,-500.0,0.00011784,2]
[336061737,1724685045629,-500.0,0.00011784,2]
[336061738,1724685045638,-500.0,0.00011784,2]
[336061739,1724685045648,-726.35,0.00011784,2]
[336061740,1724685045658,-500.0,0.00011784,2]
[336061741,1724685045667,-762.09,0.00011784,2]
[336061742,1724685045678,-869.31,0.00011784,2]
[336061743,1724685045687,-500.0,0.00011784,2]
[336061744,1724685045696,-958.41,0.00011784,2]
[336061745,1724685045705,-523.27,0.00011784,2]
[336061746,1724685045715,-738.21,0.00011784,2]
[336061747,1724685045724,-500.0,0.00011784,2]
[336061748,1724685045734,-500.0,0.00011784,2]
[336061749,1724685045744,-500.0,0.00011784,2]
[336061750,1724685045753,-500.0,0.00011784,2]
[336061751,1724685045763,-500.0,0.00011784,2]
[336061752,1724685045773,-500.0,0.00011784,2]
[336061753,1724685045784,-500.0,0.00011784,2]
[336061754,1724685045795,-602.69,0.00011784,2]
[336061755,1724685045806,-908.5,0.00011784,2]
[336061756,1724685045817,-946.35,0.00011784,2]
[336061757,1724685045829,-649.57,0.00011784,2]
[336061758,1724685045841,-596.68,0.00011784,2]
[336061759,1724685045852,-500.0,0.00011784,2]
[336061760,1724685045862,-621.42,0.00011784,2]
[336061761,1724685045873,-500.0,0.00011784,2]
[336061762,1724685045884,-500.0,0.00011784,2]
[336061763,1724685045895,-500.0,0.00011784,2]
[336061764,1724685045906,-1774.42,0.00011784,2]
[336061765,1724685045917,-694.43,0.00011784,2]
[336061766,1724685045930,-500.0,0.00011784,2]
[336061767,1724685045941,-18410.3,0.00011784,2]
[336061768,1724685045952,-500.0,0.00011784,2]
[336061769,1724685045963,-500.0,0.00011784,2]
[336061770,1724685045973,-863.58,0.00011784,2]
[336061771,1724685045983,-801.96,0.00011784,2]
[336061773,1724685045992,-500.0,0.00011784,2]
[336061775,1724685046002,-888.01,0.00011784,2]
[336061777,1724685046011,-164.71,0.00011784,2]
[336061779,1724685046021,-500.0,0.00011784,2]
[336061780,1724685046031,-1012.69,0.00011784,2]
[336061781,1724685046041,-500.0,0.00011784,2]
[336061782,1724685046050,-590.21,0.00011784,2]
[336061783,1724685046060,-500.0,0.00011784,2]
[336061784,1724685046070,-500.06,0.00011784,2]
[336061785,1724685046080,-566.56,0.00011784,2]
[336061786,1724685046090,-538.63,0.00011784,2]
[336061787,1724685046099,-500.0,0.00011784,2]
[336061788,1724685046109,-790.28,0.00011784,2]
[336061789,1724685046120,-500.0,0.00011784,2]
[336061790,1724685046131,-864.67,0.00011784,2]
[336061792,1724685046142,-500.0,0.00011784,2]
[336061794,1724685046153,-500.0,0.00011784,2]
[336061795,1724685046164,-500.0,0.00011784,2]
[336061796,1724685046175,-545.54,0.00011784,2]
[336061797,1724685046186,-500.0,0.00011784,2]
[336061798,1724685046197,-500.0,0.00011784,2]
[336061799,1724685046209,-500.0,0.00011784,2]
[336061800,1724685046219,-914.84,0.00011784,2]
[336061801,1724685046230,-500.0,0.00011784,2]
[336061802,1724685046242,-500.0,0.00011784,2]
[336061803,1724685046253,-1128.96,0.00011784,2]
[336061804,1724685046264,-500.0,0.00011784,2]
[336061805,1724685046276,-500.0,0.00011784,2]
[336061807,1724685046287,-557.82,0.00011784,2]
[336061808,1724685046299,-534.61,0.00011784,2]
[336061809,1724685046309,-1112.32,0.00011784,2]
[336061810,1724685046318,-500.0,0.00011784,2]
[336061811,1724685046328,-500.0,0.00011784,2]
[336061812,1724685046337,-500.0,0.00011784,2]
[336061813,1724685046346,-500.0,0.00011784,2]
[336061814,1724685046356,-505.49,0.00011784,2]
[336061815,1724685046365,-500.0,0.00011784,2]
[336061816,1724685046375,-500.0,0.00011784,2]
[336061817,1724685046384,-500.0,0.00011784,2]
[336061818,1724685046394,-500.0,0.00011784,2]
[336061819,1724685046404,-500.0,0.00011784,2]
[336061820,1724685046414,-477.56537165,0.00011784,2]
[336061821,1724685046424,-1017.06,0.00011784,2]
[336061822,1724685046434,-500.0,0.00011784,2]
[336061823,1724685046443,-500.45,0.00011784,2]
[336061824,1724685046452,-500.0,0.00011784,2]
[336061825,1724685046463,-500.0,0.00011784,2]
[336061826,1724685046474,-747.49,0.00011784,2]
[336061827,1724685046484,-929.71,0.00011784,2]
[336061828,1724685046496,-500.0,0.00011784,2]
[336061829,1724685046506,-500.0,0.00011784,2]
[336061830,1724685046522,-500.0,0.00011784,2]
[336061831,1724685046532,-500.0,0.00011784,2]
[336061832,1724685046611,-636.44,0.00011784,2]
[336061833,1724685046622,-500.0,0.00011784,2]
[336061834,1724685046633,-2798.37,0.00011784,2]
[336061835,1724685046643,-500.0,0.00011784,2]
[336061836,1724685046652,-849.48,0.00011785,2]
[336061837,1724685046661,-577.09,0.00011785,2]
[336061838,1724685046671,-528.5,0.00011785,2]
[336061839,1724685046680,-500.0,0.00011785,2]
[336061840,1724685046689,-586.7,0.00011785,2]
[336061841,1724685046699,-500.0,0.00011785,2]
[336061842,1724685046709,-500.0,0.00011785,2]
[336061843,1724685046718,-500.0,0.00011786,2]
[336061844,1724685046728,-500.0,0.00011786,2]
[336061845,1724685046737,-544.28,0.00011786,2]
[336061846,1724685046747,-500.07,0.00011786,2]
[336061847,1724685046757,-500.0,0.00011786,2]
[336061848,1724685046766,-500.0,0.00011786,2]
[336061849,1724685046776,-579.85,0.00011786,2]
[336061850,1724685046785,-556.56,0.00011786,2]
[336061851,1724685046795,-500.0,0.00011786,2]
[336061852,1724685046804,-500.0,0.00011786,2]
[336061853,1724685046813,-500.0,0.00011786,2]
[336061854,1724685046824,-500.0,0.00011786,2]
[336061855,1724685046834,-500.0,0.00011786,2]
[336061856,1724685046845,-500.0,0.00011786,2]
[336061857,1724685046855,-509.98,0.00011786,2]
[336061858,1724685046865,-500.0,0.00011786,2]
[336061859,1724685046877,-702.72,0.00011786,2]
[336061860,1724685046887,-500.0,0.00011786,2]
[336061861,1724685046896,-500.0,0.00011786,2]
[336061862,1724685046907,-500.0,0.00011786,2]
[336061863,1724685046917,-500.0,0.00011786,2]
[336061864,1724685046927,-500.0,0.00011786,2]
[336061865,1724685046936,-502.69822252,0.00011786,2]
[336061866,1724685046946,-500.0,0.00011786,2]
[336061867,1724685046956,-528.96385454,0.00011786,2]
[336061868,1724685046966,-500.0,0.00011786,2]
[336061869,1724685046976,-500.0,0.00011786,2]
[336061870,1724685046985,-614.05,0.00011786,2]
[336061871,1724685046995,-500.0,0.00011786,2]
[336061872,1724685047004,-500.0,0.00011786,2]
[336061873,1724685047014,-500.0,0.00011786,2]
[336061874,1724685047023,-500.0,0.00011786,2]
[336061875,1724685047032,-639.8,0.00011786,2]
[336061876,1724685047041,-500.0,0.00011786,2]
[336061877,1724685047051,-500.0,0.00011786,2]
[336061878,1724685047060,-500.0,0.00011786,2]
[336061879,1724685047071,-500.0,0.00011786,2]
[336061880,1724685047080,-508.34,0.00011786,2]
[336061881,1724685047089,-500.0,0.00011786,2]
[336061882,1724685047099,-500.0,0.00011786,2]
[336061883,1724685047108,-501.80954467,0.00011786,2]
[336061884,1724685047117,-500.0,0.00011786,2]
[336061885,1724685047126,-500.0,0.00011786,2]
[336061886,1724685047136,-750.87,0.00011786,2]
[336061887,1724685047145,-500.0,0.00011786,2]
[336061888,1724685047154,-500.0,0.00011786,2]
[336061889,1724685047163,-756.42,0.00011786,2]
[336061890,1724685047174,-174.04647532,0.00011786,2]
[336061891,1724685047183,-500.0,0.00011786,2]
[336061892,1724685047192,-500.0,0.00011786,2]
[336061893,1724685047203,-500.0,0.00011786,2]
[336061894,1724685047214,-500.0,0.00011786,2]
[336061895,1724685047225,-500.0,0.00011786,2]
[336061896,1724685047236,-540.49,0.00011786,2]
[336061897,1724685047247,-503.26724347,0.00011786,2]
[336061898,1724685047258,-500.0,0.00011786,2]
[336061899,1724685047268,-567.15221641,0.00011786,2]
[336061900,1724685047279,-675.49,0.00011786,2]
[336061901,1724685047290,-500.0,0.00011786,2]
[336061902,1724685047301,-500.0,0.00011786,2]
[336061903,1724685047312,-500.0,0.00011786,2]
[336061904,1724685047323,-500.0,0.00011786,2]
[336061905,1724685047332,-500.0,0.00011786,2]
[336061906,1724685047342,-500.0,0.00011786,2]
[336061907,1724685047351,-501.4248834,0.00011786,2]
[336061908,1724685047360,-500.0,0.00011786,2]
[336061909,1724685047370,-501.30612771,0.00011786,2]
[336061910,1724685047379,-500.0,0.00011786,2]
[336061911,1724685047389,-500.0,0.00011786,2]
[336061912,1724685047398,-644.38,0.00011786,2]
[336061913,1724685047408,-534.89,0.00011786,2]
[336061914,1724685047417,-500.45967523,0.00011786,2]
[336061915,1724685047427,-500.0,0.00011786,2]
[336061916,1724685047437,-500.0,0.00011786,2]
[336061917,1724685047447,-646.22,0.00011786,2]
[336061918,1724685047457,-529.15,0.00011786,2]
[336061919,1724685047466,-500.0,0.00011786,2]
[336061920,1724685047476,-500.0,0.00011786,2]
[336061921,1724685047486,-500.0,0.00011786,2]
[336061922,1724685047497,-500.0,0.00011786,2]
[336061923,1724685047509,-516.57926988,0.00011786,2]
[336061924,1724685047525,-500.0,0.00011786,2]
[336061925,1724685047534,-500.0,0.00011786,2]
[336061926,1724685047543,-503.31,0.00011786,2]
[336061927,1724685047554,-500.0,0.00011786,2]
[336061928,1724685047566,-500.0,0.00011786,2]
[336061929,1724685047578,-500.0,0.00011786,2]
[336061930,1724685047589,-699.14,0.00011786,2]
[336061931,1724685047602,-736.6,0.00011786,2]
[336061932,1724685047613,-717.04,0.00011786,2]
[336061933,1724685047624,-500.0,0.00011786,2]
[336061934,1724685047634,-571.68,0.00011786,2]
[336061935,1724685047645,-500.0,0.00011786,2]
[336061936,1724685047656,-500.0,0.00011786,2]
[336061937,1724685047666,-805.73,0.00011786,2]
[336061938,1724685047676,-500.0,0.00011786,2]
[336061939,1724685047686,-607.12,0.00011786,2]
[336061940,1724685047695,-500.0,0.00011786,2]
[336061941,1724685047705,-514.67,0.00011786,2]
[336061942,1724685047714,-706.12,0.00011786,2]
[336061943,1724685047723,-500.0,0.00011786,2]
[336061944,1724685047732,-584.88,0.00011786,2]
[336061945,1724685047742,-189.91,0.00011786,2]
[336061946,1724685047751,-500.75758708,0.00011786,2]
[336061947,1724685047761,-500.0,0.00011786,2]
[336061948,1724685047771,-500.0,0.00011786,2]
[336061949,1724685047782,-1145.89,0.00011786,2]
[336061950,1724685047791,-500.0,0.00011786,2]
[336061951,1724685047801,-500.0,0.00011786,2]
[336061952,1724685047810,-500.0,0.00011786,2]
[336061953,1724685047820,-580.56,0.00011786,2]
[336061954,1724685047841,-500.0,0.00011786,2]
[336061955,1724685047853,-978.16,0.00011786,2]
[336061956,1724685047864,-529.43338668,0.00011786,2]
[336061957,1724685047875,-500.0,0.00011786,2]
[336061958,1724685047885,-656.71,0.00011786,2]
[336061959,1724685047896,-500.0,0.00011786,2]
[336061960,1724685047907,-500.0,0.00011786,2]
[336061961,1724685047917,-500.0,0.00011786,2]
[336061962,1724685047929,-500.0,0.00011786,2]
[336061963,1724685047940,-500.0,0.00011786,2]
[336061964,1724685047951,-510.34,0.00011786,2]
[336061965,1724685047961,-500.0,0.00011786,2]
[336061966,1724685047972,-368.56981019,0.00011786,2]
[336061967,1724685047983,-813.01,0.00011786,2]
[336061968,1724685047994,-795.75,0.00011786,2]
[336061969,1724685048005,-712.87,0.00011786,2]
[336061970,1724685048015,-500.0,0.00011786,2]
[336061971,1724685048025,-500.0,0.00011786,2]
[336061972,1724685048035,-500.0,0.00011786,2]
[336061973,1724685048045,-500.0,0.00011786,2]
[336061974,1724685048054,-911.47,0.00011786,2]
[336061975,1724685048064,-502.69866046,0.00011786,2]
[336061976,1724685048078,-500.0,0.00011786,2]
[336061977,1724685048088,-708.5,0.00011786,2]
[336061978,1724685048098,-690.26,0.00011786,2]
[336061979,1724685048109,-529.51,0.00011786,2]
[336061980,1724685048119,-500.0,0.00011786,2]
[336061981,1724685048129,-154.14502851,0.00011786,2]
[336061982,1724685048139,-500.1959355,0.00011786,2]
[336061983,1724685048149,-821.29,0.00011786,2]
[336061984,1724685048159,-500.0,0.00011786,2]
[336061985,1724685048168,-501.19927622,0.00011786,2]
[336061986,1724685048180,-588.16,0.00011786,2]
[336061987,1724685048191,-500.0,0.00011786,2]
[336061988,1724685048202,-732.16,0.00011786,2]
[336061989,1724685048214,-847.62,0.00011786,2]
[336061990,1724685048226,-500.0,0.00011786,2]
[336061991,1724685048237,-500.0,0.00011786,2]
[336061992,1724685048247,-500.0,0.00011786,2]
[336061993,1724685048258,-500.0,0.00011786,2]
[336061994,1724685048269,-500.0,0.00011786,2]
[336061995,1724685048280,-500.0,0.00011786,2]
[336061996,1724685048291,-500.0,0.00011786,2]
[336061997,1724685048302,-500.0,0.00011786,2]
[336061998,1724685048312,-500.0,0.00011786,2]
[336061999,1724685048323,-717.29,0.00011786,2]
[336062000,1724685048334,-500.0,0.00011786,2]
[336062001,1724685048345,-500.0,0.00011786,2]
[336062002,1724685048356,-500.0,0.00011786,2]
[336062003,1724685048366,-500.0,0.00011786,2]
[336062004,1724685048377,-500.0,0.00011786,2]
[336062005,1724685048387,-500.0,0.00011786,2]
[336062006,1724685048397,-500.0,0.00011786,2]
[336062007,1724685048407,-500.0,0.00011786,2]
[336062008,1724685048418,-500.0,0.00011786,2]
[336062009,1724685048428,-688.03,0.00011786,2]
[336062010,1724685048438,-500.0,0.00011786,2]
[336062011,1724685048448,-500.0,0.00011786,2]
[336062012,1724685048459,-500.0,0.00011786,2]
[336062013,1724685048468,-500.0,0.00011786,2]
[336062014,1724685048478,-500.0,0.00011786,2]
[336062015,1724685048488,-500.0,0.00011786,2]
[336062016,1724685048499,-501.11708054,0.00011786,2]
[336062017,1724685048509,-500.0,0.00011786,2]
[336062018,1724685048520,-152.01454984,0.00011786,2]
[336062019,1724685048535,-500.0,0.00011786,2]
[336062020,1724685048546,-500.0,0.00011786,2]
[336062021,1724685048557,-595.11,0.00011786,2]
[336062022,1724685048569,-500.0,0.00011786,2]
[336062023,1724685048583,-731.94,0.00011786,2]
[336062024,1724685048593,-500.0,0.00011786,2]
[336062025,1724685048606,-589.69,0.00011786,2]
[336062026,1724685048616,-500.0,0.00011786,2]
[336062027,1724685048628,-899.37,0.00011786,2]
[336062028,1724685048639,-500.0,0.00011787,2]
[336062029,1724685048651,-500.0,0.00011787,2]
[336062030,1724685048662,-500.0,0.00011787,2]
[336062031,1724685048673,-500.0,0.00011787,2]
[336062032,1724685048684,-500.0,0.00011787,2]
[336062033,1724685048695,-500.0,0.00011787,2]
[336062034,1724685048706,-500.0,0.00011787,2]
[336062035,1724685048717,-500.0,0.00011787,2]
[336062036,1724685048727,-500.0,0.00011787,2]
[336062037,1724685048737,-500.0,0.00011787,2]
[336062038,1724685048747,-500.0,0.00011787,2]
[336062039,1724685048756,-500.0,0.00011787,2]
[336062040,1724685048767,-500.0,0.00011787,2]
[336062041,1724685048777,-500.0,0.00011787,2]
[336062042,1724685048787,-809.22,0.00011787,2]
[336062043,1724685048797,-540.21,0.00011787,2]
[336062044,1724685048808,-805.39,0.00011787,2]
[336062045,1724685048819,-500.0,0.00011787,2]
[336062046,1724685048830,-500.0,0.00011787,2]
[336062047,1724685048840,-553.64,0.00011787,2]
[336062048,1724685048851,-500.0,0.00011787,2]
[336062049,1724685048861,-500.0,0.00011787,2]
[336062050,1724685048872,-542.27,0.00011787,2]
[336062051,1724685048883,-500.0,0.00011787,2]
[336062052,1724685048894,-500.0,0.00011787,2]
[336062053,1724685048905,-500.0,0.00011787,2]
[336062054,1724685048916,-527.46,0.00011787,2]
[336062055,1724685048926,-500.0,0.00011787,2]
[336062056,1724685048938,-500.0,0.00011787,2]
[336062057,1724685048950,-817.78,0.00011787,2]
[336062058,1724685048962,-506.44,0.00011787,2]
[336062059,1724685048972,-531.16,0.00011787,2]
[336062060,1724685048983,-500.0,0.00011787,2]
[336062061,1724685048995,-505.85,0.00011787,2]
[336062062,1724685049007,-500.0,0.00011787,2]
[336062063,1724685049019,-500.0,0.00011787,2]
[336062064,1724685049031,-696.47,0.00011787,2]
[336062065,1724685049043,-610.76,0.00011787,2]
[336062066,1724685049052,-619.87,0.00011787,2]
[336062067,1724685049062,-500.0,0.00011789,2]
[336062068,1724685049073,-500.0,0.00011789,2]
[336062069,1724685049083,-500.0,0.00011873,2]
[336062070,1724685049092,-320223.25230474,0.000119,2]
[336062072,1724685049714,-465.42153719,0.0001151,2]
[336062073,1724685049726,-500.0,0.0001151,2]
[336062074,1724685049737,-7191.54276626,0.000119,2]
[336062075,1724685049749,-2500.36487093,0.00011987,2]
[336062076,1724685049759,-2016.72,0.00012057,2]
[336062077,1724685049769,-1233.9,0.00012057,2]
[336062078,1724685049779,-500.0,0.00012057,2]
[336062079,1724685049790,-500.0,0.00012057,2]
[336062080,1724685049800,-500.0,0.00012057,2]
[336062081,1724685049811,-583.12,0.00012057,2]
[336062082,1724685049821,-500.0,0.00012057,2]
[336062083,1724685049834,-500.0,0.00012057,2]
[336062084,1724685049844,-500.0,0.00012057,2]
[336062085,1724685049854,-500.0,0.00012057,2]
[336062086,1724685049864,-553.52,0.00012057,2]
[336062087,1724685049874,-500.0,0.00012057,2]
[336062088,1724685049884,-500.0,0.00012057,2]
[336062089,1724685049894,-1711.9,0.00012057,2]
[336062090,1724685049905,-500.0,0.00012057,2]
[336062091,1724685049915,-500.84,0.00012057,2]
[336062092,1724685049925,-500.0,0.00012057,2]
[336062093,1724685049936,-528.45,0.00012057,2]
[336062094,1724685049947,-1847.15,0.00012057,2]
[336062095,1724685050132,-500.0,0.00012057,2]
[336062096,1724685050143,-534.16,0.00012057,2]
[336062097,1724685050153,-500.0,0.00012057,2]
[336062098,1724685050162,-500.0,0.00012057,2]
[336062099,1724685050172,-500.0,0.00012057,2]
[336062100,1724685050181,-500.0,0.00012057,2]
[336062101,1724685050190,-503.69,0.00012057,2]
[336062102,1724685050200,-500.0,0.00012057,2]
[336062103,1724685050210,-500.0,0.00012057,2]
[336062104,1724685050220,-500.0,0.00012057,2]
[336062105,1724685050229,-82090.34777315,0.00012058,5]
[336062106,1724685050239,-500.0,0.00012058,2]
[336062107,1724685050248,-513.36,0.00012058,2]
[336062108,1724685050258,-500.0,0.00012058,2]
[336062109,1724685050268,-500.0,0.00012058,2]
[336062110,1724685050277,-500.0,0.00012058,2]
[336062111,1724685050287,-500.0,0.00012058,2]
[336062112,1724685050297,-538.72,0.00012058,2]
[336062113,1724685050307,-500.0,0.00012058,2]
[336062114,1724685050317,-500.0,0.00012058,2]
[336062115,1724685050328,-859.08,0.00012058,2]
[336062116,1724685050338,-500.0,0.00012058,2]
[336062117,1724685050348,-173.2,0.00012058,2]
[336062118,1724685050358,-638.72818631,0.00012058,2]
[336062119,1724685050368,-500.0,0.00012058,2]
[336062120,1724685050377,-500.0,0.00012058,2]
[336062121,1724685050387,-500.0,0.00012058,2]
[336062122,1724685050396,-500.0,0.00012058,2]
[336062123,1724685050406,-500.0,0.00012058,2]
[336062124,1724685050416,-500.0,0.00012058,2]
[336062125,1724685050425,-500.0,0.00012058,2]
[336062126,1724685050435,-788.41,0.00012058,2]
[336062127,1724685050445,-874.03,0.00012058,2]
[336062128,1724685050455,-500.0,0.00012058,2]